Cogmind - Beta 17 @@@ ROGUE MODE // 2026.07.08 @ 15:57:44 Player: EN-G1N Result: Destroyed by XR-HXB(R) with Subdweller Machine Gun Performance ------------- Evolutions (0) 0 Regions Visited (2) 400 Robots Destroyed (16) 80 Value Destroyed (363) 363 Prototype IDs (3) 60 Alien Tech Used (0) 0 Bonus (5000) 5000 TOTAL SCORE: 5903 Bonus ------- Prayed to X0-1V1 5000 Cogmind --------- Core Integrity 0/250 Matter 253/300 Energy 99/100 System Corruption 0% Temperature Cool (-666) Movement Core (50) Location -10/Subcaves Parts ------- > --- POWER (1) -------- (None) > --- PROPULSION (2) --- (None) > --- UTILITY (2) ------ (None) > --- WEAPON (2) ------- (None) > --- INVENTORY (5) ---- Structural Scanner Sensor Array Improved Terrain Scanner Seismic Detector Mining Laser Peak State ------------ > --- POWER ------------ Light Ion Engine > --- PROPULSION ------- Aluminum Leg Aluminum Leg > --- UTILITY ---------- Small Storage Unit X0-1V1's Piety Tracker > --- WEAPON ----------- Particle Gun Light Assault Rifle > --- INVENTORY -------- Sensor Array Signal Interpreter Improved Terrain Scanner Seismic Detector ECM Suite Light Armor Plating Light Assault Rifle Mining Laser [Rating: 21] Favorites ----------- Power Light Ion Engine Engine Light Ion Engine Propulsion Aluminum Leg Leg Aluminum Leg Wheel Wheel Utility Seismic Detector Device Seismic Detector Storage Small Storage Unit Weapon Light Assault Rifle Energy Gun Particle Gun Ballistic Gun Light Assault Rifle Special Weapon Mining Laser Build | -11 -10 -10 ------- Run | Yrd Mat Sub Slots Evolved . | . . . Power . | . . . Propulsion . | . . . Utility . | . . . Weapon . | . . . Parts Attached 19 | 7 12 . Power 3 | 1 2 . Engine 3 | 1 2 . Core . | . . . Reactor . | . . . Propulsion 4 | 2 2 . Treads . | . . . Leg 2 | 2 . . Wheel 2 | . 2 . Hover . | . . . Flight . | . . . Utility 4 | 2 2 . Device 2 | 1 1 . Storage 2 | 1 1 . Processor . | . . . Hackware . | . . . Protection . | . . . Artifact . | . . . Weapon 8 | 2 6 . Energy Gun 2 | . 2 . Energy Cannon . | . . . Ballistic Gun 5 | 2 3 . Ballistic Cannon . | . . . Launcher . | . . . Special Weapon 1 | . 1 . Impact Weapon . | . . . Slashing Weapon . | . . . Piercing Weapon . | . . . Special Melee Weapon . | . . . Unidentified Prototypes 1 | . 1 . Parts Lost 6 | . 6 . Power 1 | . 1 . Propulsion 2 | . 2 . Utility . | . . . Weapon 3 | . 3 . Highest Loss Streak 4 | . 4 . To Critical Strikes . | . . . Average Backups 8 | 4 8 8 Power . | . . . Propulsion 1 | 2 1 . Utility 4 | . 4 7 Weapon 1 | . 1 1 Tool/Special . | . . . Unused Backups 13 | . 7 6 Power . | . . . Propulsion 2 | . 2 . Utility 9 | . 3 6 Weapon 2 | . 2 . Tool/Special . | . . . Average Slot Usage (%) 97 | . 98 90 Engine 13 | . 13 12 Leg 25 | . 25 25 Wheel 2 | . 2 . Device 13 | . 14 12 Storage 13 | . 14 12 Energy Gun 8 | . 8 12 Ballistic Gun 18 | . 18 12 Peak Build Rating 21 | 7 21 21 Average Rating 8 | 4 8 20 On Entrance 9 | . 7 21 Avg Prop Armor Cover (%) . | . . . Naked Turns 2 | . . 2 Heaviest Build 88 | 13 88 13 Greatest Support 26 | 20 26 20 Greatest Overweight (x) 4 | 1 4 . Average Overweight (x) . | . . . Largest Inventory Capacity 25 | 8 25 8 Average Capacity 13 | 7 13 7 Most Carried 13 | 8 13 8 Average Carried 8 | 4 8 7 Final Capacity 8 | 8 8 5 Final Carried 8 | 7 8 5 Class Distribution -------------------- 100% | Mutant Dominant Class ---------------- Mutant | -10/Materials Mutant | -10/Subcaves Resources | -11 -10 -10 ----------- Run | Yrd Mat Sub Matter Collected 566 | 300 266 . Remotely . | . . . Salvage Created 587 | 75 512 . Parts 36 | 6 30 . Haulers Intercepted 2 | . 2 . Recyclers Shooed 1 | 1 . . Parts Field Recycled . | . . . Retrieved Matter . | . . . Parts Self-Destructed . | . . . Prevented . | . . . Parts Restored . | . . . Kills | -11 -10 -10 ------- Run | Yrd Mat Sub Combat Hostiles Destroyed 10 | . 10 . Guns 10 | . 10 . Classes Destroyed 6 | 2 4 . Tunneler 1 | 1 . . Hauler 2 | . 2 . Recycler 1 | 1 . . Watcher 2 | . 2 . Swarmer 3 | . 3 . Grunt 7 | . 7 . Best Kill Streak 4 | 2 4 . Combat Bots Only 4 | . 4 . Max Kills in Single Turn 2 | 1 2 . Gunslinging 1 | . 1 . Exploded . | . . . Melee . | . . . Uniques/NPCs Destroyed . | . . . Combat | -11 -10 -10 -------- Run | Yrd Mat Sub Hostile Shots Fired 88 | . 63 25 Missed 23 | . 15 8 Hits 65 | . 48 17 Projectile 65 | . 48 17 Critical Strikes 5 | . 3 2 Damage Taken 897 | . 640 257 Core 252 | . 146 106 Absorbed by Shields . | . . . Core Remaining (%) 100 | 100 . . Volleys Fired 83 | 5 74 4 Largest 2 | 2 2 2 Hottest 100 | 40 100 85 Shots Fired 140 | 10 122 8 Gun 139 | 10 121 8 Cannon . | . . . Launcher . | . . . Special 1 | . 1 . Kinetic 113 | 10 99 4 Thermal 13 | . 9 4 Explosive . | . . . Electromagnetic 14 | . 14 . Robot Hit Streak 10 | 4 10 3 Robot Miss Streak 5 | 1 5 2 Penetration Max . | . . . Secondary Targets 3 | . 3 . Max Gunslinging Chain 1 | . 1 . Shots Hit Robots 85 | 7 74 4 Core Hits 32 | 3 29 . Critical Kills . | . . . Critical Parts Destroyed . | . . . Critical Strikes . | . . . Melee Attacks . | . . . Impact . | . . . Slashing . | . . . Piercing . | . . . Sneak Attacks . | . . . Combat Hostiles . | . . . Follow-up Attacks . | . . . Damage Inflicted 928 | 85 799 44 Guns 890 | 85 761 44 Cannons . | . . . Explosions 38 | . 38 . Melee . | . . . Ramming . | . . . Kinetic 680 | 85 582 13 Thermal 144 | . 113 31 Explosive . | . . . Electromagnetic 104 | . 104 . Impact . | . . . Slashing . | . . . Piercing . | . . . Highest Corruption . | . . . Average Corruption . | . . . Corruption Purged . | . . . Corruption Blocked . | . . . Overload Shots . | . . . Overflow Damage . | . . . Projectiles . | . . . Explosions . | . . . Melee . | . . . Knockbacks . | . . . Impact . | . . . Kinetic . | . . . Secondary . | . . . Self-Inflicted Damage 22 | . 22 . Shots 1 | . 1 . Rammed . | . . . Targets Rammed . | . . . Kicked . | . . . Crushed . | . . . Highest Temperature 141 | . 141 10 Average Temperature 30 | . 32 7 Received Heat Transfer 462 | . 366 96 Siege Activations . | . . . Martial Activations . | . . . Shielding Activations . | . . . Robots Disrupted . | . . . Combat Hostiles . | . . . Robots Corrupted . | . . . Combat Hostiles . | . . . Parts Fried . | . . . Impact Corruptions . | . . . Robots Melted . | . . . Combat Hostiles . | . . . Parts Melted . | . . . Heat Transferred 309 | . 235 74 Parts Sabotaged . | . . . Parts Stolen . | . . . Parts Stripped . | . . . Power Chain Reactions 1 | . 1 . Alert | -11 -10 -10 ------- Run | Yrd Mat Sub Maximum Alert Level . | . . . Low Security (%) 100 | 100 100 . Level 1 . | . . . Level 2 . | . . . Level 3 . | . . . Level 4 . | . . . Level 5 . | . . . High Security . | . . . Max Security . | . . . Peak Influence 110 | 5 110 . Initial . | . . . Average 18 | . 20 . Influence Increases 347 | 10 337 . Destroy 0b10 Robot/C 200 | . 200 . Destroy 0b10 Robot/NC 30 | 10 20 . Destroy Leader 48 | . 48 . Successful Hack 4 | . 4 . Disable Machine 30 | . 30 . Destroy Structure 5 | . 5 . Lose Combat Pursuer 30 | . 30 . Influence Decreases 347 | 10 337 . Time Decay 287 | 10 277 . Lost Part 60 | . 60 . Squads Dispatched 1 | . 1 . Investigation 1 | . 1 . Extermination . | . . . Reinforcement . | . . . Assault . | . . . Garrison . | . . . Intercept . | . . . Searches Triggered . | . . . Construction Impeded . | . . . Haulers Reinforced . | . . . Active Scanning Responses . | . . . Cargo Convoy Interrupts . | . . . Stealth | -11 -10 -10 --------- Run | Yrd Mat Sub Distress Signals 1 | . 1 . Communications Jammed . | . . . Distress Signals . | . . . Times Spotted 22 | . 18 4 Peak Tracking Total 5 | . 5 4 Tactical Retreats 1 | . 1 . Traps | -11 -10 -10 ------- Run | Yrd Mat Sub Traps Triggered 2 | . 2 . Indirectly . | . . . Trap Hack Attempts . | . . . Triggered . | . . . Disarmed . | . . . Reprogrammed . | . . . Reused . | . . . Traps Extracted . | . . . Installed . | . . . Triggered . | . . . Machines | -11 -10 -10 ---------- Run | Yrd Mat Sub Machines Disabled 2 | . 2 . Max in Single Turn 1 | . 1 . Machines Repaired . | . . . Machines Dismantled . | . . . Machines Sabotaged . | . . . Overloaded Fab Kills . | . . . Hacking | -11 -10 -10 --------- Run | Yrd Mat Sub Machines Accessed 3 | . 3 . Terminals 3 | . 3 . Fabricators . | . . . Repair Stations . | . . . Recycling Units . | . . . Scanalyzers . | . . . Garrison Access . | . . . Total Hacks 5 | . 5 . Successful 2 | . 2 . Failed 3 | . 3 . Catastrophic 1 | . 1 . Database Lockouts . | . . . Manual 4 | . 4 . Terminals 5 | . 5 . Fabricators . | . . . Repair Stations . | . . . Recycling Units . | . . . Scanalyzers . | . . . Garrison Access . | . . . Terminal Hacks 1 | . 1 . Prototype ID Bank 1 | . 1 . Fabricator Hacks . | . . . Repair Station Hacks . | . . . Recycling Unit Hacks . | . . . Scanalyzer . | . . . Garrison Access Hacks . | . . . Unauthorized Hacks 1 | . 1 . Terminals 1 | . 1 . Botnet 1 | . 1 . Fabricators . | . . . Repair Stations . | . . . Recycling Units . | . . . Scanalyzers . | . . . Garrison Access . | . . . Data Cores Recovered . | . . . Used . | . . . Hacking Detections 1 | . 1 . Full Trace Events . | . . . Feedback Events . | . . . Feedback Blocked . | . . . Robot Schematics Acquired . | . . . Robots Built . | . . . Authchips . | . . . Time . | . . . Total Robot Build Rating . | . . . Part Schematics Acquired . | . . . Parts Built . | . . . Authchips . | . . . Time . | . . . Total Part Build Rating . | . . . Part Studies Acquired . | . . . Parts Repaired . | . . . Time . | . . . Parts Recycled . | . . . Recycled Matter . | . . . Retrieved Matter . | . . . Retrieved Components . | . . . Parts Scanalyzed . | . . . Part Schematics Acquired . | . . . Parts Damaged . | . . . Bothacking | -11 -10 -10 ------------ Run | Yrd Mat Sub Used RIF Installer . | . . . Robots Hacked . | . . . Non-combat . | . . . Combat . | . . . Robot Hacks Applied . | . . . Relay Couplers Released . | . . . Fabnet Peak Effective % . | . . . Robots Rewired . | . . . Allies Hacked . | . . . Hacks Repelled . | . . . Allies | -11 -10 -10 -------- Run | Yrd Mat Sub Total Allies . | . . . Largest Group . | . . . Highest-Rated Group . | . . . Highest-Rated Ally . | . . . Total Orders . | . . . Ally Attacks . | . . . Total Damage . | . . . Kills . | . . . Allies Corrupted . | . . . Allies Melted . | . . . X0-1V1 Amusement Gains 63 | . 13 50 Good Acts 1 | . . 1 Intel | -11 -10 -10 ------- Run | Yrd Mat Sub Active Infowar (turns) 1262 | 24 1238 . Seismic 1262 | 24 1238 . Robot Analysis Total . | . . . Derelict Logs Recovered 1 | . . 1 Drone Launches . | . . . Drone Recoveries . | . . . Exploration | -11 -10 -10 ------------- Run | Yrd Mat Sub Turns Passed 1439 | 112 1245 82 Spaces Moved 631 | 66 504 61 Core 19 | 15 . 4 Treads . | . . . Legs 585 | 51 477 57 Wheels 27 | . 27 . Hover . | . . . Flight . | . . . Fastest Speed 50 | 50 120 50 Average Speed 151 | 109 160 115 Slowest Speed 400 | 120 400 120 Overloaded Moves . | . . . Propulsion Burnouts . | . . . Robots Hopped . | . . . Potential Cave-ins . | . . . Cave-ins Triggered . | . . . Exploration Rate (%) 30 | 4 80 8 Regions Visited 2 Branch Regions 1 Pre-discovered Areas . | . . . Known Exits Taken . | . . . Unknown Exits Taken 2 | 1 1 . Scrap Searched . | . . . Spaces Dug . | . . . Terrain Destroyed 4 | . 4 . Melee . | . . . Projectile . | . . . AOE 4 | . 4 . Terrain Rammed . | . . . Walls Destroyed . | . . . Machines Disabled . | . . . Actions | -11 -10 -10 --------- Run | Yrd Mat Sub Total 988 | 96 827 65 Wait 211 | 5 206 . Move 629 | 65 503 61 Hop . | . . . Pick Up 33 | 14 19 . Fast Attach 1 | . 1 . Attach 14 | 7 7 . Detach . | . . . Swap 8 | . 8 . Drop 9 | . 9 . Fire 83 | 5 74 4 Melee . | . . . Ram . | . . . Kick . | . . . Crush . | . . . Escape Stasis . | . . . Rewire . | . . . Trap . | . . . Miscellaneous . | . . . Route ------- -11/Scrapyard -10/Materials (discovered 4 exits: [*Mat x2] / [*Min] / [*Sub]) -10/Subcaves History --------- Turn | Location | Event 14 | -11/Scrapyard | Discovered new exit (range 15) 113 | -11/Scrapyard | Entered Materials 317 | -10/Materials | Build established: Mutant 320 | -10/Materials | Discovered new exit (range 8) 456 | -10/Materials | Discovered new exit (range 16) 832 | -10/Materials | Lost 4 parts (1p3w) 842 | -10/Materials | Core integrity fell below 50% 1207 | -10/Materials | Discovered new exit (range 15) 1307 | -10/Materials | Discovered new exit (range 6) 1344 | -10/Materials | Prayed at D.C.S.S. Altar Unit 1358 | -10/Materials | Entered Subcaves 1359 | -10/Subcaves | Approached by a straggling Scientist 1414 | -10/Subcaves | Learned Materials garrison access intel 1438 | -10/Subcaves | Core integrity fell below 20% 1438 | -10/Subcaves | Released all parts (7) 1440 | -10/Subcaves | Destroyed by XR-HXB(R) with Subdweller Machine Gun Last Messages --------------- 01362_ RA-546(c): "Hey, let me tag along and I can get us both out of this nasty situation. At least I think I can... The group I got separated from was talking about a shortcut back to the UFD." RA-546(c): "I think it's somewhere northeast of here" 01411_ JS-ZX0(u) builds Twisted Machinery. 01414_ Acquired derelict log, extracted data. Data stored: Materials garrison access intel. 01434_ X0-1V1 enshrouds you in a swirling icy cloud. 01435_ Critical hit (Burn: +37). 01438_ Released X0-1V1's Piety Tracker. 01438_ Released Sml. Storage Unit. 01438_ Released Particle Gun. 01438_ Released Aluminum Leg. 01438_ Released Lgt. Ion Engine. 01438_ Released Lgt. Assault Rifle. 01440_ X0-1V1 giggles madly! Map ----- +----------------------------------------------------+ | ?????????????????????????????????????????????????? | | ?????????????????????????????????????????????????? | | ?????????????????????????????????????????????????? | | ?????????????????????????????????????????????????? | | ?????????????????????????????????????????????????? | | ?????????????????????????????????????????????????? | | ?????????????????????????????????????????????????? | | ?????????????????????????????????????????????????? | | ?????????????????????????????????????????????????? | | ?????????????????????????????????????????????????? | | ?????????????????????????????????????????????????? | | ?????????????????????????????????????????????????? | | ?????????????????????????????????????????????????? | | ??????""" #???????????????????????????????????? | | ??????"""""""#??????###??????????????????????????? | | ??????"""""""#?????## #??????????????????????????? | | ???????" "" "#????## #??????????????????????????? | | ????????# "" #???## ##?????????????????????????? | | ?????????# "#?### #?????????????????????????? | | ????????## ### ##????????????????????????? | | ######?## # # #????????????????????????? | | ## ### *![ #????????????????????????? | | !!! ###??????????????????????? | | # ###=[= ##?????????????????????? | | ### ## ####?##RR #?????????????????????? | | ## ##?#######?????# @ #?????????????????????? | | ?## #???????????# #???????????????????? | | ?# ?????????# #??????????????????? | | ??????# ##??????????????????? | | #????# ##???????????????????? | | ## ##???# #????????????????????? | | #?# ##??? #????????????????????? | | ??# #??? #????????????????????? | | ?? ?? ## ????????????????????? | | ?? ?## ???????????????????? | | ??# ### ???# ??????????????????? | | ???## ???## ???? ?????????????????? | | ????? #????#######????# ##??????????????????? | | ????? ##???????????????????###???????????????????? | | ?????#???????????????????????????????????????????? | | ?????????????????????????????????????????????????? | | ?????????????????????????????????????????????????? | | ?????????????????????????????????????????????????? | | ?????????????????????????????????????????????????? | | ?????????????????????????????????????????????????? | | ?????????????????????????????????????????????????? | | ?????????????????????????????????????????????????? | | ?????????????????????????????????????????????????? | | ?????????????????????????????????????????????????? | | ?????????????????????????????????????????????????? | +----------------------------------------------------+ Best States ------------- Heat Dissipation 25 Energy Generation 10 Energy Capacity 125 Matter Stores 300 Matter Capacity 300 Sight Range 16 Terrain Scan Density 10 Evasion (%) 55 Item Schematics ----------------- None Robot Schematics ------------------ None Fabricated ------------ Nothing Repaired ---------- Nothing Studied --------- None Alien Tech Used ----------------- None Achievements -------------- Chaos Is Inevitable Challenges ------------ None Game ------ Seed StrikeCoordinationChip Manual? 0 Play Time 00:13:08 Cumulative 55.5 hours Start 2026.07.08 @ 15:45:31 End 2026.07.08 @ 15:57:44 Sessions 1 Manual Loads 0 Difficulty Rogue Special Mode None Game No. 58 Rogue 3 Adventurer 55 Explorer 0 Win Type - Total 1 Types 1/0/0/0/0/0/0/0/0/0 Lore% 33 Gallery% 31 Achievement% 24 Wizard Run 0 Options --------- Layout 1 ASCII 0 Keyboard 0 Movement Mouse Keybinds 0 Fullscreen 2 Font 24/Smallcaps Map View 50x35 Zoom Use 0% Tactical HUD 1 Map Filters NONE Filters NONE Steam 1 RUN: 602030c9-b18d-4098-9776-ad2032bb1cc7